Workbook

Sheet 개요
A1: 주택건설공사 감리자 모집에 따른 사업개요
A3: 구 분 | C3: 내 용
A4: 사업명 | C4: 여수 죽림1지구 A6블럭 공동주택 신축공사
A5: 사업주체 | B5: 시행사 | C5: 법인명 | D5: 비오엠건설(주) 대표이사 이경민
C6: 주소 | D6: 경상남도 창원시 성산구 중앙대로 77, 901 (중앙동, 동성올림픽타운)
C7: 전화 | D7: TEL.055-268-6611
B8: 시공사 | C8: 법인명 | D8: 덕진토건(주) 대표이사 정철채
C9: 주소 | D9: 경상남도 창원시 성산구 중앙대로 77, 906 (중앙동, 동성올림픽타운)
C10: 전화 | D10: TEL.055-268-6100
C11: 법인명
C12: 주소
C13: 전화
B14: 설계자 | C14: 법인명 | D14: ㈜나산종합건축사사무소 대표자 오형종
C15: 주소 | D15: 서울특별시 송파구 법원로 114, 엠스테이트 B동 601호
C16: 전화 | D16: TEL.02-2202-4600
A17: 사업개요 | C17: 대지위치 | E17: 전라남도 여수시 소라면 죽림리 1319번지
C18: 대지면적 | E18: 29,198.40 | G18: ㎡
C19: 사업규모 | E19: 아파트 9개동 / 626세대 / 지하 2층~지상 20층
C20: 연면적 | E20: 90,890.6985 | G20: ㎡
C21: 공사기간 | E21: 2026년 06월 01일 ~ 2029년 04월 30일 (35개월)
C22: 사업승인일 | E22: 2023-03-30
A23: 사업비 | C23: 총사업비 | E23: 173,513,898 | G23: 천원
C24: 대지비 | E24: 42,718,477 | G24: 천원
C25: 총공사비 | E25: 96,229,000 | G25: 천원
C26: 감리구분 | E26: 감리대상건축공사비 | H26: 85,763,361 | J26: 천원
E27: 감리대상전기공사비 | H27: 4,177,700 | J27: 천원
E28: 감리대상소방공사비 | H28: 3,649,332 | J28: 천원
E29: 타법감리대상공사비 | H29: 2,638,607 | J29: 천원
E30: 감리대상제외건축공사비 | J30: 천원
E31: 소계 | H31: =H26+H27+H28+H29-1 -> 96,228,999 | J31: 천원

Sheet 총사업비(소방)
A1: [별지 서식 제 1호]
A2: 총사업비 산출 총괄표
A3: 현장명 : 여수 죽림1지구 A6블럭 공동주택 신축공사 | I3: 단위 : 천원
A4: 구 분 | D4: 전 체 | E4: 건축감리대상 | F4: 전기감리대상 | G4: 소방감리대상 | H4: 타법감리대상 | I4: 감리제외대상
A5: 총공사비 | B5: 순공사비 | C5: 토목공사 | D5: ='공종별 총공사비(소방)'!D5 -> 12,389,510 | E5: =D5 -> 12,389,510
C6: 건축공사 | D6: ='공종별 총공사비(소방)'!D6 -> 59,515,422 | E6: =D6 -> 59,515,422
C7: 기계설비공사 | D7: ='공종별 총공사비(소방)'!D7 -> 6,161,202 | E7: =D7 -> 6,161,202
C8: 전기공사 | D8: ='공종별 총공사비(소방)'!D8 -> 3,802,753 | F8: =D8 -> 3,802,753
C9: 정보통신공사 | D9: ='공종별 총공사비(소방)'!D9 -> 2,401,793 | H9: =D9 -> 2,401,793
C10: 소방설비공사 | D10: ='공종별 총공사비(소방)'!D10 -> 3,321,806 | G10: =D10 -> 3,321,806
C11: 소 계 | D11: =SUM(D5:D10) -> 87,592,485 | E11: =SUM(E5:E10) -> 78,066,134 | F11: =SUM(F5:F10) -> 3,802,753 | G11: =SUM(G5:G10) -> 3,321,806 | H11: =SUM(H5:H10) -> 2,401,793
B12: 일 반 관 리 비 | D12: ='공종별 총공사비(소방)'!D12 -> 5,360,429 | E12: 4,777,441 | F12: 232,718 | G12: 203,286 | H12: 146,983
B13: 이 윤 | D13: ='공종별 총공사비(소방)'!D13 -> 3,276,086 | E13: 2,919,786 | F13: 142,228 | G13: 124,240 | H13: 89,831
B14: 소 계 | D14: =D12+D13 -> 8,636,514 | E14: =E12+E13 -> 7,697,227 | F14: =F12+F13 -> 374,947 | G14: =G12+G13 -> 327,526 | H14: =H12+H13 -> 236,814
B15: 총 계 | D15: =D11+D14 -> 96,229,000 | E15: =E11+E14 -> 85,763,361 | F15: =F11+F14 -> 4,177,700 | G15: =G11+G14 -> 3,649,332 | H15: =H11+H14 -> 2,638,607
A16: 간접비 | B16: 설 계 비 | D16: 1,645,565 | I16: =D16 -> 1,645,565
B17: 감 리 비 | D17: 4,015,368 | I17: =D17 -> 4,015,368
B18: 일반분양시설경비 | D18: 3,861,647 | I18: 3,861,647
B19: 분양금 및 부담금 | D19: 3,567,865 | I19: 3,567,865
B20: 보 상 비 | D20: 444,568 | I20: 444,568
B21: 기타 사업성 경비 | D21: 12,474,699 | I21: 12,474,699
B22: 소 계 | D22: =SUM(D16:D21) -> 26,009,712 | I22: 26,009,712
A23: 대 지 비 | D23: 42,718,477 | I23: =D23 -> 42,718,477
A24: 부가가치세액 | D24: =(D15+D22)*0.07 -> 8,556,710 | I24: =D24 -> 8,556,710
A25: 총 사 업 비 계 | D25: =D15+D22+D23+D24-1 -> 173,513,898 | E25: =E15+E22+E23+E24 -> 85,763,361 | F25: =F15+F22 -> 4,177,700 | G25: =G15+G22 -> 3,649,332 | H25: =H15+H22 -> 2,638,607 | I25: =I15+I22+I23+I24 -> 77,284,899

Sheet 공종별 총공사비(소방)
A1: [별지 제2호 서식]
A2: 공종별 총공사비 구성 현황표
B3: 현장명 : 여수 죽림1지구 A6블럭 공동주택 신축공사 | F3: 단위 : 천원
A4: 구 분 | D4: 전 체 | E4: 소방감리대상 | F4: 타법감리대상
B5: 토목공사(13개 공종) | D5: 12,389,510 | F5: =D5 -> 12,389,510
B6: 건축공사(23개 공종) | D6: 59,515,422 | F6: =D6-E6 -> 59,515,422
B7: 기계설비(9개 공종) | D7: 6,161,202 | F7: 6,161,202
B8: 전기공사(15개 공종) | D8: 3,802,753 | F8: 3,802,753
B9: 정보통신(13개 공종) | D9: 2,401,793 | F9: 2,401,793
B10: 소방설비(2개 공종) | D10: 3,321,806 | E10: =D10 -> 3,321,806
A11: 합 계 | D11: =D5+D6+D7+D8+D9+D10 -> 87,592,485 | E11: =E5+E6+E7+E9+E10 -> 3,321,806 | F11: =F5+F6+F7+F8+F9+F10 -> 84,270,680
A12: 일반관리비 | D12: 5,360,429 | E12: =E11*D12/D11 -> 203,286 | F12: =F11*D12/D11 -> 5,157,143
A13: 이 윤 | D13: 3,276,086 | E13: =E11*D13/D11 -> 124,240 | F13: =F11*D13/D11 -> 3,151,845
A14: 총 공 사 비 계 | D14: =D5+D6+D7+D8+D9+D10+D12+D13 -> 96,229,000 | E14: =E5+E6+E7+E8+E9+E10+E12+E13 -> 3,649,332 | F14: =F5+F6+F7+F8+F9+F10+F12+F13 -> 92,579,668

Sheet 공정표(소방)
A1: 공사 예정 공정표 (소방)
A3: [공사명] 여수 죽림1지구 A6블럭 공동주택 신축공사
A4: [공사기간] 2026년 06월 01일 ~ 2029년 04월 30일 (35개월)
A5: [공사규모] 아파트 9개동 / 626세대 / 지하 2층, 지상 20층
A6: [공사 착공 예정일] 2026년 06월 01일
A7: 구분 | D7: 2026년 | R7: 2027년 | AP7: 2028년 | BN7: 2029년 | BV7: 비 고
D8: 6 | F8: 7 | H8: 8 | J8: 9 | L8: 10 | N8: 11 | P8: 12 | R8: 1 | T8: 2 | V8: 3 | X8: 4 | Z8: 5 | AB8: 6 | AD8: 7 | AF8: 8 | AH8: 9 | AJ8: 10 | AL8: 11 | AN8: 12 | AP8: 1 | AR8: 2 | AT8: 3 | AV8: 4 | AX8: 5 | AZ8: 6 | BB8: 7 | BD8: 8 | BF8: 9 | BH8: 10 | BJ8: 11 | BL8: 12 | BN8: 1 | BP8: 2 | BR8: 3 | BT8: 4
D9: 1 | F9: 2 | H9: 3 | J9: 4 | L9: 5 | N9: 6 | P9: 7 | R9: 8 | T9: 9 | V9: 10 | X9: 11 | Z9: 12 | AB9: 13 | AD9: 14 | AF9: 15 | AH9: 16 | AJ9: 17 | AL9: 18 | AN9: 19 | AP9: 20 | AR9: 21 | AT9: 22 | AV9: 23 | AX9: 24 | AZ9: 25 | BB9: 26 | BD9: 27 | BF9: 28 | BH9: 29 | BJ9: 30 | BL9: 31 | BN9: 32 | BP9: 33 | BR9: 34 | BT9: 35
A10: 전체공정 | D10: (06월01일) | BQ10: (04월30일) | BV10: 26년06월01일 ~ 29년04월30일 (35개월)
A13: 소방공사 | R13: (01월01일) | BQ13: (04월30일) | BV13: 27년01월01일 ~ 29년04월30일 (28개월)
